fUSD/lending_fUSD_20240730
["ID","MTS","AMOUNT","RATE_DAILY","PERIOD"]
[333656174,1722311440613,-506.09239724,0.00010958,2]
[333656175,1722311440624,-500.0,0.00010958,2]
[333656176,1722311440635,-500.0,0.00010958,2]
[333656177,1722311440646,-166.61147099,0.00010958,2]
[333656178,1722311440657,-500.0,0.00010958,2]
[333656179,1722311440668,-500.0,0.00010958,2]
[333656180,1722311440679,-500.0,0.00010958,2]
[333656182,1722311440690,-274.54934548,0.00010958,2]
[333656184,1722311440702,-500.0,0.00010958,2]
[333656185,1722311440712,-504.44868254,0.00010958,2]
[333656187,1722311440723,-500.0,0.00010958,2]
[333656190,1722311440734,-500.0,0.00010958,2]
[333656192,1722311440745,-500.0,0.00010958,2]
[333656194,1722311440756,-500.0,0.00010958,2]
[333656196,1722311440768,-500.0,0.00010958,2]
[333656197,1722311440779,-500.0,0.00010958,2]
[333656198,1722311440790,-500.0,0.00010958,2]
[333656199,1722311440802,-500.0,0.00010958,2]
[333656200,1722311440813,-500.0,0.00010958,2]
[333656201,1722311440823,-505.87943006,0.00010958,2]
[333656202,1722311440835,-225.05708608,0.00010958,2]
[333656203,1722311441218,-274.94291392,0.00010958,2]
[333656204,1722311441227,-509.67053601,0.00010958,2]
[333656205,1722311441237,-78.69760727,0.00010958,2]
[333656206,1722311441248,-442.99717546,0.00010958,2]
[333656207,1722311441258,-53.43654383,0.00010958,2]
[333656208,1722311441523,-505.25872565,0.00010958,2]
[333656209,1722311441537,-514.80522849,0.00010958,2]
[333656210,1722311441546,-145.11097996,0.00010958,2]
[333656227,1722311443203,-354.88902004,0.00010958,2]
[333656228,1722311443213,-500.0,0.00010958,2]
[333656229,1722311443223,-412.61097996,0.00010958,2]
[333656230,1722311443259,-87.38902004,0.00010958,2]
[333656231,1722311443270,-500.0,0.00010958,2]
[333656232,1722311443281,-500.0,0.00010958,2]
[333656233,1722311443291,-500.0,0.00010958,2]
[333656234,1722311443300,-223.98202067,0.00010958,2]
[333656235,1722311443309,-500.0,0.00010958,2]
[333656236,1722311443319,-376.77934645,0.00010958,2]
[333656237,1722311443329,-500.0,0.00010958,2]
[333656238,1722311443338,-534.85258135,0.00010958,2]
[333656239,1722311443347,-500.0,0.00010958,2]
[333656240,1722311443356,-502.9915331,0.00010958,2]
[333656241,1722311443366,-436.4956219,0.00010958,2]
[333656242,1722311443375,-509.8258055,0.00010958,2]
[333656243,1722311443385,-489.0,0.00010958,2]
[333656244,1722311443395,-647.98,0.00010958,2]
[333656245,1722311443405,-519.58759992,0.00010958,2]
[333656246,1722311443414,-519.41545803,0.00010958,2]
[333656247,1722311443424,-500.0,0.00010958,2]
[333656248,1722311443436,-500.0,0.00010958,2]
[333656249,1722311443446,-487.29509079,0.00010958,2]
[333656250,1722311443457,-505.45215006,0.00010958,2]
[333656251,1722311443466,-506.27167891,0.00010958,2]
[333656252,1722311443475,-524.36883774,0.00010958,2]
[333656253,1722311443485,-325.52588067,0.00010958,2]
[333656254,1722311443494,-500.0,0.00010958,2]
[333656255,1722311443503,-500.0,0.00010958,2]
[333656256,1722311443513,-500.0061173,0.00010958,2]
[333656257,1722311443522,-500.0,0.00010958,2]
[333656259,1722311443531,-500.0,0.00010958,2]
[333656261,1722311443540,-500.0,0.00010958,2]
[333656262,1722311443549,-539.28339099,0.00010958,2]
[333656263,1722311443559,-500.0,0.00010958,2]
[333656264,1722311443568,-500.0,0.00010958,2]
[333656265,1722311443577,-500.0,0.00010958,2]
[333656266,1722311443587,-505.40071648,0.00010958,2]
[333656267,1722311443595,-500.0,0.00010958,2]
[333656268,1722311443604,-500.0,0.00010958,2]
[333656269,1722311443614,-500.0,0.00010958,2]
[333656270,1722311443623,-500.0,0.00010958,2]
[333656271,1722311443633,-521.43970722,0.00010958,2]
[333656272,1722311443642,-500.0,0.00010958,2]
[333656273,1722311443652,-500.0,0.00010958,2]
[333656274,1722311443661,-539.64959613,0.00010958,2]
[333656275,1722311443670,-512.41091979,0.00010958,2]
[333656276,1722311443679,-518.71570831,0.00010958,2]
[333656277,1722311443689,-507.57648066,0.00010958,2]
[333656278,1722311443699,-500.0,0.00010958,2]
[333656279,1722311443709,-500.0,0.00010958,2]
[333656280,1722311443718,-162.39689439,0.00010958,2]
[333656281,1722311443727,-500.0,0.00010958,2]
[333656282,1722311443738,-519.642348,0.00010958,2]
[333656283,1722311443748,-523.77956147,0.00010958,2]
[333656284,1722311443758,-500.0,0.00010958,2]
[333656285,1722311443767,-252.02,0.00010958,2]
[333656286,1722311443777,-509.65976095,0.00010958,2]
[333656287,1722311443787,-500.0,0.00010958,2]
[333656288,1722311443796,-513.77919036,0.00010958,2]
[333656289,1722311443806,-550.50701269,0.00010958,2]
[333656290,1722311443815,-558.88647243,0.00010958,2]
[333656291,1722311443825,-500.0,0.00010958,2]
[333656292,1722311443835,-443.59287177,0.00010958,2]
[333656293,1722311443845,-532.87213136,0.00010958,2]
[333656294,1722311443855,-542.46079609,0.00010958,2]
[333656295,1722311443864,-500.0,0.00010958,2]
[333656296,1722311443874,-268.00441129,0.00010958,2]
[333656297,1722311443884,-530.58124318,0.00010958,2]
[333656298,1722311443898,-572.67298039,0.00010958,2]
[333656299,1722311443908,-500.0,0.00010958,2]
[333656300,1722311443917,-500.0,0.00010958,2]
[333656301,1722311443927,-529.66844375,0.00010958,2]
[333656302,1722311443938,-500.0,0.00010958,2]
[333656303,1722311443948,-500.0,0.00010958,2]
[333656304,1722311443958,-500.0,0.00010958,2]
[333656305,1722311443968,-179.56231691,0.00010958,2]
[333656306,1722311443978,-500.0,0.00010958,2]
[333656307,1722311443988,-451.18989333,0.00010958,2]
[333656308,1722311443998,-500.0,0.00010958,2]
[333656309,1722311444007,-157.37,0.00010958,2]
[333656310,1722311444017,-516.13243148,0.00010958,2]
[333656311,1722311444031,-500.0,0.00010958,2]
[333656312,1722311444042,-500.0,0.00010958,2]
[333656313,1722311444053,-208.40573289,0.00010958,2]
[333656314,1722311444063,-500.0,0.00010958,2]
[333656315,1722311444074,-469.05176253,0.00010958,2]
[333656316,1722311444084,-311.46014098,0.00010958,2]
[333656317,1722311444094,-193.2319922,0.00010958,2]
[333656318,1722311444106,-500.0,0.00010958,2]
[333656319,1722311444116,-500.0,0.00010958,2]
[333656320,1722311444127,-210.52,0.00010958,2]
[333656321,1722311444137,-500.0,0.00010958,2]
[333656322,1722311444148,-521.21066939,0.00010958,2]
[333656323,1722311444157,-577.93946192,0.00010958,2]
[333656324,1722311444167,-500.0,0.00010958,2]
[333656325,1722311444179,-440.0,0.00010958,2]
[333656326,1722311444190,-500.0,0.00010958,2]
[333656327,1722311444201,-500.0,0.00010958,2]
[333656328,1722311444210,-500.0,0.00010958,2]
[333656329,1722311444220,-467.08,0.00010958,2]
[333656330,1722311444229,-500.0,0.00010958,2]
[333656331,1722311444238,-285.69007536,0.00010958,2]
[333656332,1722311444248,-500.0,0.00010958,2]
[333656333,1722311444258,-556.16228654,0.00010958,2]
[333656334,1722311444267,-500.0,0.00010958,2]
[333656335,1722311444276,-622.98983062,0.00010958,2]
[333656336,1722311444286,-500.0,0.00010958,2]
[333656337,1722311444295,-500.0,0.00010958,2]
[333656338,1722311444305,-517.22,0.00010958,2]
[333656339,1722311444314,-500.0,0.00010958,2]
[333656340,1722311444323,-500.0,0.00010958,2]
[333656341,1722311444333,-500.0,0.00010958,2]
[333656342,1722311444342,-500.0,0.00010958,2]
[333656343,1722311444351,-554.28641678,0.00010958,2]
[333656344,1722311444361,-500.0,0.00010958,2]
[333656345,1722311444370,-500.0,0.00010958,2]
[333656346,1722311444379,-569.27210062,0.00010958,2]
[333656347,1722311444388,-500.0,0.00010958,2]
[333656348,1722311444398,-230.94754096,0.00010958,2]
[333656349,1722311444407,-500.0,0.00010958,2]
[333656350,1722311444417,-500.0,0.00010958,2]
[333656351,1722311444426,-427.21847809,0.00010958,2]
[333656352,1722311444436,-534.47917129,0.00010958,2]
[333656353,1722311444447,-500.0,0.00010958,2]
[333656354,1722311444456,-520.66810203,0.00010958,2]
[333656355,1722311444465,-500.0,0.00010958,2]
[333656356,1722311444475,-522.84,0.00010958,2]
[333656357,1722311444484,-500.0,0.00010958,2]
[333656358,1722311444494,-500.0,0.00010958,2]
[333656359,1722311444503,-500.0,0.00010958,2]
[333656360,1722311444513,-500.0,0.00010958,2]
[333656361,1722311444523,-500.0,0.00010958,2]
[333656362,1722311444532,-500.0,0.00010958,2]
[333656363,1722311444542,-528.76579476,0.00010958,2]
[333656364,1722311444552,-600.19087928,0.00010958,2]
[333656365,1722311444562,-500.0,0.00010958,2]
[333656366,1722311444571,-500.0,0.00010958,2]
[333656367,1722311444580,-528.15009672,0.00010958,2]
[333656368,1722311444590,-331.36759717,0.00010958,2]
[333656369,1722311444599,-500.0,0.00010958,2]
[333656370,1722311444609,-528.41264832,0.00010958,2]
[333656371,1722311444619,-500.0,0.00010958,2]
[333656372,1722311444628,-500.0,0.00010958,2]
[333656373,1722311444637,-346.24,0.00010958,2]
[333656374,1722311444647,-540.48505715,0.00010958,2]
[333656375,1722311444657,-161.69037527,0.00010958,2]
[333656376,1722311444666,-524.48000213,0.00010958,2]
[333656377,1722311444675,-529.6532472,0.00010958,2]
[333656378,1722311444684,-539.42593721,0.00010958,2]
[333656379,1722311444696,-555.71773492,0.00010958,2]
[333656380,1722311444705,-535.82948663,0.00010958,2]
[333656381,1722311444714,-549.5482218,0.00010958,2]
[333656382,1722311444723,-462.73017803,0.00010958,2]
[333656383,1722311444733,-552.11197166,0.00010958,2]
[333656384,1722311444743,-590.63347767,0.00010958,2]
[333656385,1722311444752,-532.59551304,0.00010958,2]
[333656386,1722311444762,-500.0,0.00010958,2]
[333656387,1722311444771,-570.99760361,0.00010958,2]
[333656388,1722311444781,-500.0,0.00010958,2]
[333656389,1722311444790,-500.0,0.00010958,2]
[333656390,1722311444799,-530.2305269,0.00010958,2]
[333656391,1722311444808,-524.19347693,0.00010958,2]
[333656392,1722311444818,-521.81442472,0.00010958,2]
[333656393,1722311444827,-548.49607999,0.00010958,2]
[333656394,1722311444836,-500.0,0.00010958,2]
[333656395,1722311444846,-304.06797028,0.00010958,2]
[333656396,1722311444855,-510.22404523,0.00010958,2]
[333656397,1722311444865,-511.73166599,0.00010958,2]
[333656398,1722311444874,-510.49536404,0.00010958,2]
[333656399,1722311444884,-512.86851003,0.00010958,2]
[333656400,1722311444893,-524.58287806,0.00010958,2]
[333656401,1722311444903,-568.00093152,0.00010958,2]
[333656402,1722311444912,-500.0,0.00010958,2]
[333656403,1722311444921,-509.92075726,0.00010958,2]
[333656404,1722311444931,-509.85494403,0.00010958,2]
[333656405,1722311444941,-552.13062921,0.00010958,2]
[333656406,1722311444951,-532.98424858,0.00010958,2]
[333656407,1722311444960,-516.90108455,0.00010958,2]
[333656408,1722311444970,-516.40494712,0.00010958,2]
[333656409,1722311444979,-525.29588929,0.00010958,2]
[333656410,1722311444989,-500.0,0.00010958,2]
[333656411,1722311444998,-526.39425461,0.00010958,2]
[333656412,1722311445008,-516.67523661,0.00010958,2]
[333656413,1722311445018,-298.89761451,0.00010958,2]
[333656414,1722311445030,-512.13660003,0.00010958,2]
[333656415,1722311445039,-514.3256341,0.00010958,2]
[333656416,1722311445049,-521.4164323,0.00010958,2]
[333656417,1722311445058,-546.73038897,0.00010958,2]
[333656418,1722311445067,-550.80113867,0.00010958,2]
[333656419,1722311445076,-315.03577563,0.00010958,2]
[333656420,1722311445085,-500.0,0.00010958,2]
[333656421,1722311445094,-414.741388,0.00010958,2]
[333656422,1722311445106,-509.52241153,0.00010958,2]
[333656423,1722311445116,-290.6785782,0.00010958,2]
[333656424,1722311445125,-214.50638167,0.00010958,2]
[333656425,1722311445135,-500.0,0.00010958,2]
[333656426,1722311445144,-500.0,0.00010958,2]
[333656427,1722311445153,-500.0,0.00010958,2]
[333656428,1722311445163,-538.69229011,0.00010958,2]
[333656429,1722311445172,-500.0,0.00010958,2]
[333656430,1722311445182,-500.0,0.00010958,2]
[333656431,1722311445192,-203.85199156,0.00010958,2]
[333656432,1722311445202,-547.12683149,0.00010958,2]
[333656433,1722311445211,-500.0,0.00010958,2]
[333656434,1722311445221,-500.0,0.00010958,2]
[333656435,1722311445231,-500.0,0.00010958,2]
[333656436,1722311445241,-500.0,0.00010958,2]
[333656437,1722311445251,-179.04334588,0.00010958,2]
[333656438,1722311445260,-500.0,0.00010958,2]
[333656439,1722311445271,-500.0,0.00010958,2]
[333656440,1722311445280,-500.0,0.00010958,2]
[333656441,1722311445290,-643.6,0.00010958,2]
[333656442,1722311445300,-500.0,0.00010958,2]
[333656443,1722311445311,-500.0,0.00010958,2]
[333656444,1722311445321,-500.0,0.00010958,2]
[333656445,1722311445331,-500.0,0.00010958,2]
[333656446,1722311445341,-500.0,0.00010958,2]
[333656447,1722311445350,-500.0,0.00010958,2]
[333656448,1722311445359,-562.91086048,0.00010958,2]
[333656449,1722311445368,-290.70002768,0.00010958,2]
[333656450,1722311445378,-500.0,0.00010958,2]
[333656451,1722311445387,-500.0,0.00010958,2]
[333656452,1722311445396,-500.0,0.00010958,2]
[333656453,1722311445406,-512.13967898,0.00010958,2]
[333656454,1722311445415,-198.50418785,0.00010958,2]
[333656455,1722311445425,-544.78183636,0.00010958,2]
[333656456,1722311445434,-500.0,0.00010958,2]
[333656457,1722311445445,-500.0,0.00010958,2]
[333656458,1722311445455,-500.0,0.00010958,2]
[333656459,1722311445465,-544.76378409,0.00010958,2]
[333656460,1722311445475,-500.0,0.00010958,2]
[333656461,1722311445485,-500.0,0.00010958,2]
[333656462,1722311445495,-500.0,0.00010958,2]
[333656463,1722311445504,-155.13448006,0.00010958,2]
[333656464,1722311445514,-151.49305421,0.00010958,2]
[333656465,1722311445523,-500.0,0.00010958,2]
[333656466,1722311445533,-500.0,0.00010958,2]
[333656467,1722311445542,-189.2141384,0.00010958,2]
[333656468,1722311445552,-500.0,0.00010958,2]
[333656469,1722311445561,-525.20272386,0.00010958,2]
[333656470,1722311445571,-500.0,0.00010958,2]
[333656471,1722311445580,-500.0,0.00010958,2]
[333656472,1722311445590,-500.0,0.00010958,2]
[333656473,1722311445600,-500.0,0.00010958,2]
[333656474,1722311445609,-521.10167598,0.00010958,2]
[333656475,1722311445619,-407.02951683,0.00010958,2]
[333656476,1722311445630,-500.0,0.00010958,2]
[333656477,1722311445640,-564.26190717,0.00010958,2]
[333656478,1722311445650,-500.0,0.00010958,2]
[333656479,1722311445660,-500.0,0.00010958,2]
[333656480,1722311445670,-500.0,0.00010958,2]
[333656481,1722311445680,-541.73394179,0.00010958,2]
[333656482,1722311445690,-500.0,0.00010958,2]
[333656483,1722311445700,-500.0,0.00010958,2]
[333656484,1722311445710,-500.0,0.00010958,2]
[333656485,1722311445720,-507.63103593,0.00010958,2]
[333656487,1722311445729,-500.0,0.00010958,2]
[333656489,1722311445739,-262.75247719,0.00010958,2]
[333656490,1722311445749,-507.75625208,0.00010958,2]
[333656491,1722311445759,-514.5119856,0.00010958,2]
[333656492,1722311445769,-500.0,0.00010958,2]
[333656494,1722311445779,-500.0,0.00010958,2]
[333656495,1722311445788,-634.47982496,0.00010958,2]
[333656496,1722311445798,-210.85007943,0.00010958,2]
[333656497,1722311445808,-500.0,0.00010958,2]
[333656498,1722311445818,-500.0,0.00010958,2]
[333656499,1722311445827,-500.0,0.00010958,2]
[333656500,1722311445837,-500.0,0.00010958,2]
[333656501,1722311445847,-500.0,0.00010958,2]
[333656502,1722311445857,-500.0,0.00010958,2]
[333656503,1722311445867,-500.0,0.00010958,2]
[333656504,1722311445877,-500.0,0.00010958,2]
[333656506,1722311445886,-500.0,0.00010958,2]
[333656507,1722311445895,-500.0,0.00010958,2]
[333656508,1722311445905,-500.0,0.00010958,2]
[333656509,1722311445915,-513.82177758,0.00010958,2]
[333656510,1722311445924,-500.0,0.00010958,2]
[333656511,1722311445934,-640.1380685,0.00010958,2]
[333656512,1722311445944,-500.0,0.00010958,2]
[333656513,1722311445953,-500.0,0.00010958,2]
[333656514,1722311445963,-500.0,0.00010958,2]
[333656515,1722311445972,-500.0,0.00010958,2]
[333656516,1722311445982,-319.45323506,0.00010958,2]
[333656517,1722311445991,-500.0,0.00010958,2]
[333656518,1722311446000,-500.0,0.00010958,2]
[333656519,1722311446010,-500.0,0.00010958,2]
[333656520,1722311446020,-459.04853496,0.00010958,2]
[333656521,1722311446034,-329.9468463,0.00010958,2]
[333656522,1722311446044,-150.0,0.00010958,2]
[333656523,1722311446054,-500.0,0.00010958,2]
[333656524,1722311446065,-500.0,0.00010958,2]
[333656525,1722311446076,-500.0,0.00010958,2]
[333656526,1722311446088,-500.0,0.00010958,2]
[333656527,1722311446098,-217.59375812,0.00010958,2]
[333656528,1722311446110,-443.53443281,0.00010958,2]
[333656529,1722311446119,-602.14625462,0.00010958,2]
[333656530,1722311446129,-500.0,0.00010958,2]
[333656531,1722311446140,-500.0,0.00010958,2]
[333656532,1722311446150,-324.13610467,0.00010958,2]
[333656533,1722311446161,-312.8638196,0.00010958,2]
[333656534,1722311446171,-500.0,0.00010958,2]
[333656535,1722311446182,-500.0,0.00010958,2]
[333656536,1722311446193,-500.0,0.00010958,2]
[333656537,1722311446203,-517.89602542,0.00010958,2]
[333656538,1722311446212,-606.38573655,0.00010958,2]
[333656539,1722311446223,-544.24480494,0.00010958,2]
[333656540,1722311446233,-500.0,0.00010958,2]
[333656541,1722311446246,-500.0,0.00010958,2]
[333656542,1722311446255,-500.0,0.00010958,2]
[333656543,1722311446264,-500.0,0.00010958,2]
[333656544,1722311446274,-500.0,0.00010958,2]
[333656545,1722311446283,-169.55534302,0.00010958,2]
[333656546,1722311446293,-194.50597691,0.00010958,2]
[333656547,1722311446305,-500.0,0.00010958,2]
[333656548,1722311446315,-500.0,0.00010958,2]
[333656549,1722311446325,-500.0,0.00010958,2]
[333656550,1722311446334,-500.0,0.00010958,2]
[333656551,1722311446346,-500.0,0.00010958,2]
[333656552,1722311446356,-500.0,0.00010958,2]
[333656553,1722311446366,-584.88654791,0.00010958,2]
[333656554,1722311446376,-500.0,0.00010958,2]
[333656555,1722311446387,-500.0,0.00010958,2]
[333656556,1722311446398,-500.0,0.00010958,2]
[333656557,1722311446408,-500.0,0.00010958,2]
[333656558,1722311446418,-500.0,0.00010958,2]
[333656559,1722311446428,-500.0,0.00010958,2]
[333656560,1722311446438,-541.77115626,0.00010958,2]
[333656561,1722311446449,-500.0,0.00010958,2]
[333656562,1722311446458,-520.97663455,0.00010958,2]
[333656563,1722311446467,-500.0,0.00010958,2]
[333656564,1722311446478,-541.8504802,0.00010958,2]
[333656565,1722311446490,-500.0,0.00010958,2]
[333656566,1722311446501,-500.0,0.00010958,2]
[333656583,1722311446664,-500.0,0.00010958,2]
[333656585,1722311446674,-500.0,0.00010958,2]
[333656587,1722311446685,-500.0,0.00010958,2]
[333656589,1722311446696,-586.31910142,0.00010958,2]
[333656591,1722311446705,-614.12,0.00010958,2]
[333656593,1722311446715,-500.0,0.00010958,2]
[333656595,1722311446725,-309.33860906,0.00010958,2]
[333656597,1722311446734,-500.0,0.00010958,2]
[333656599,1722311446744,-524.15709767,0.00010958,2]
[333656601,1722311446753,-500.0,0.00010958,2]
[333656603,1722311446763,-500.0,0.00010958,2]
[333656605,1722311446773,-500.0,0.00010958,2]
[333656607,1722311446783,-510.4,0.00010958,2]
[333656609,1722311446794,-275.9458843,0.00010958,2]
[333656611,1722311446804,-500.0,0.00010958,2]
[333656613,1722311446814,-500.0,0.00010958,2]
[333656615,1722311446823,-500.0,0.00010958,2]
[333656617,1722311446833,-540.23,0.00010958,2]
[333656619,1722311446843,-510.29267341,0.00010958,2]
[333656621,1722311446852,-500.0,0.00010958,2]
[333656623,1722311446862,-500.0,0.00010958,2]
[333656625,1722311446871,-500.0,0.00010958,2]
[333656627,1722311446881,-508.45743956,0.00010958,2]
[333656629,1722311446891,-506.71095584,0.00010958,2]
[333656631,1722311446900,-3000.0,0.00010958,2]
[333656633,1722311446911,-516.45287455,0.00010958,2]
[333656635,1722311446921,-511.39787226,0.00010958,2]
[333656637,1722311446930,-509.56350972,0.00010958,2]
[333656639,1722311446941,-498.6104728,0.00010958,2]
[333656641,1722311446951,-562.92203556,0.00010958,2]
[333656643,1722311446962,-515.15082774,0.00010958,2]
[333656645,1722311446971,-515.55672043,0.00010958,2]
[333656647,1722311446981,-500.0,0.00010958,2]
[333656649,1722311446990,-500.0,0.00010958,2]
[333656651,1722311447000,-500.0,0.00010958,2]
[333656652,1722311447009,-253.25598122,0.00010958,2]
[333656655,1722311447019,-500.0,0.00010958,2]
[333656656,1722311447032,-512.85054976,0.00010958,2]
[333656658,1722311447041,-175.41794062,0.00010958,2]
[333656660,1722311447050,-509.54525935,0.00010958,2]
[333656662,1722311447060,-507.62155752,0.00010958,2]
[333656664,1722311447070,-510.54054041,0.00010958,2]
[333656666,1722311447080,-509.06616804,0.00010958,2]
[333656668,1722311447090,-511.76670994,0.00010958,2]
[333656670,1722311447099,-517.25361478,0.00010958,2]
[333656672,1722311447112,-518.41288185,0.00010958,2]
[333656674,1722311447122,-516.10685834,0.00010958,2]
[333656676,1722311447132,-151.0,0.00010958,2]
[333656678,1722311447142,-512.87002038,0.00010958,2]
[333656680,1722311447152,-188.681863,0.00010958,2]
[333656682,1722311447161,-500.0,0.00010958,2]
[333656684,1722311447171,-509.61697739,0.00010958,2]
[333656686,1722311447181,-500.0,0.00010958,2]
[333656688,1722311447191,-507.10822004,0.00010958,2]
[333656690,1722311447201,-613.73803131,0.00010958,2]
[333656692,1722311447210,-500.0,0.00010958,2]
[333656694,1722311447220,-205.10494696,0.00010958,2]
[333656696,1722311447230,-511.52930446,0.00010958,2]
[333656698,1722311447239,-506.23669889,0.00010958,2]
[333656700,1722311447249,-513.72583309,0.00010958,2]
[333656701,1722311447259,-515.70292946,0.00010958,2]
[333656703,1722311447268,-509.41124623,0.00010958,2]
[333656705,1722311447278,-500.0,0.00010958,2]
[333656707,1722311447287,-340.70987774,0.00010958,2]
[333656709,1722311447296,-513.28204287,0.00010958,2]
[333656711,1722311447306,-506.63501585,0.00010958,2]
[333656713,1722311447316,-153.388249,0.00010958,2]
[333656715,1722311447325,-550.06036724,0.00010958,2]
[333656717,1722311447335,-1017.46356019,0.00010958,2]
[333656719,1722311447345,-506.95923488,0.00010958,2]
[333656721,1722311447355,-511.82840953,0.00010958,2]
[333656722,1722311447364,-500.0,0.00010958,2]
[333656724,1722311447373,-203.11636151,0.00010958,2]
[333656726,1722311447383,-200.0,0.00010959,2]
[333656728,1722311447393,-200.0,0.00010959,2]
[333656730,1722311447402,-1068.76,0.00010959,5]
[333656732,1722311447412,-250.0,0.00010959,2]
[333656734,1722311447421,-709.87,0.00010959,2]
[333656736,1722311447432,-160.03585391,0.00010988,2]
[333656738,1722311447443,-200.0,0.00010988,2]
[333656740,1722311447455,-200.0,0.00010988,2]
[333656742,1722311447464,-285.99355156,0.00010993,2]
[333656744,1722311447473,-500.0,0.00010993,2]
[333656746,1722311447482,-500.0,0.00010994,2]
[333656748,1722311447492,-500.0,0.00010996,2]
[333656750,1722311447502,-500.0,0.00010996,2]
[333656752,1722311447511,-500.0,0.00010996,2]
[333656754,1722311447522,-500.0,0.00010996,2]
[333656756,1722311447531,-500.0,0.00010996,2]
[333656758,1722311447540,-500.0,0.00010996,2]
[333656759,1722311447550,-500.0,0.00010996,2]
[333656760,1722311447559,-500.0,0.00010996,2]
[333656761,1722311447569,-500.0,0.00010996,2]
[333656762,1722311447579,-500.0,0.00010997,2]
[333656763,1722311447588,-500.0,0.00010997,2]
[333656764,1722311447598,-500.0,0.00010997,2]
[333656765,1722311447607,-500.0,0.00010997,2]
[333656766,1722311447617,-613.85102241,0.00010997,2]
[333656768,1722311447627,-588.38165076,0.00010997,2]
[333656770,1722311447636,-512.34284326,0.00010997,2]
[333656772,1722311447647,-500.0,0.00010997,2]
[333656774,1722311447658,-560.86905565,0.00010997,2]
[333656776,1722311447667,-500.0,0.00010997,2]
[333656778,1722311447677,-500.0,0.00010997,2]
[333656780,1722311447686,-500.0,0.00010997,2]
[333656782,1722311447697,-500.0,0.00010997,2]
[333656784,1722311447706,-500.0,0.00010997,2]
[333656786,1722311447715,-500.0,0.00010997,2]
[333656788,1722311447725,-502.12,0.00010997,2]
[333656790,1722311447735,-500.0,0.00010997,2]
[333656792,1722311447745,-500.0,0.00010997,2]
[333656794,1722311447756,-500.0,0.00010997,2]
[333656796,1722311447766,-500.0,0.00010997,2]
[333656798,1722311447776,-314.75347994,0.00010997,2]
[333656800,1722311447786,-500.0,0.00010997,2]
[333656802,1722311447795,-500.0,0.00010997,2]
[333656804,1722311447805,-500.0,0.00010997,2]
[333656806,1722311447815,-588.60100819,0.00010997,2]
[333656808,1722311447824,-500.0,0.00010997,2]
[333656810,1722311447834,-500.0,0.00010997,2]
[333656812,1722311447843,-500.0,0.00010997,2]
[333656814,1722311447853,-500.0,0.00010997,2]
[333656816,1722311447862,-500.0,0.00010997,2]
[333656818,1722311447872,-500.0,0.00010997,2]
[333656820,1722311447881,-500.0,0.00010997,2]
[333656822,1722311447890,-500.0,0.00010997,2]
[333656824,1722311447900,-500.0,0.00010997,2]
[333656826,1722311447909,-349.07,0.00010997,2]
[333656828,1722311447919,-3159.60292757,0.00010997,2]
[333656835,1722311447978,-276.639247,0.00010997,2]
[333656848,1722311448102,-199.15326829,0.000109,2]
[333656850,1722311448114,-431.40979546,0.00010958,2]
[333656852,1722311448126,-78.46081478,0.00010958,2]
[333656854,1722311448135,-540.57945413,0.00010958,2]
[333656856,1722311448146,-595.32956602,0.00010997,2]
[333656858,1722311448157,-5233.77588146,0.00010997,2]
[333656860,1722311448169,-13041.20000012,0.00010997,2]